fUSD/lending_fUSD_20260228
["ID","MTS","AMOUNT","RATE_DAILY","PERIOD"]
[406886793,1772266242071,-3292.0,0.0001464,2]
[406886794,1772266242080,-169.4304621,0.000149,2]
[406886795,1772266242089,-169.43046208,0.000149,2]
[406886796,1772266242098,-169.43046208,0.000149,2]
[406886797,1772266242107,-1900.0,0.000149,5]
[406886798,1772266242228,-7669.92,0.0001492,2]
[406886799,1772266242237,-1000.0,0.00014945,2]
[406886800,1772266242246,-250.0,0.00015,2]
[406886801,1772266242254,-500.0,0.00015003,2]
[406886802,1772266242264,-500.0,0.00015003,2]
[406886803,1772266242273,-512.80115338,0.00015003,2]
[406886804,1772266242282,-276.97407445,0.00015004,2]
[406886805,1772266242292,-1508.05702942,0.00015004,2]
[406886806,1772266242300,-1093.78241863,0.00015004,2]
[406886807,1772266242310,-1500.0,0.00015004,2]
[406886808,1772266242318,-1500.0,0.00015004,2]
[406886809,1772266242327,-289.52830744,0.00015004,2]
[406886810,1772266242336,-1500.0,0.00015004,2]
[406886811,1772266242345,-1500.0,0.00015004,2]
[406886812,1772266242354,-1217.87177273,0.00015004,2]
[406886813,1772266242363,-1500.0,0.00015004,2]
[406886814,1772266242373,-1500.0,0.00015004,2]
[406886815,1772266242383,-1500.0,0.00015004,2]
[406886816,1772266242394,-1510.16686171,0.00015004,2]
[406886817,1772266242403,-1500.0,0.00015004,2]
[406886818,1772266242412,-1500.0,0.00015004,2]
[406886819,1772266242421,-1500.0,0.00015004,2]
[406886820,1772266242430,-503.90241085,0.00015004,2]
[406886821,1772266242439,-1500.0,0.00015004,2]
[406886822,1772266242448,-1011.98217898,0.00015004,2]
[406886823,1772266242457,-1500.0,0.00015004,2]
[406886824,1772266242466,-1500.0,0.00015004,2]
[406886825,1772266242476,-1500.0,0.00015004,2]
[406886826,1772266242485,-1014.6582369,0.00015004,2]
[406886827,1772266242494,-1500.0,0.00015004,2]
[406886828,1772266242502,-1500.0,0.00015004,2]
[406886829,1772266242511,-1500.0,0.00015004,2]
[406886830,1772266242520,-1500.0,0.00015004,2]
[406886831,1772266242529,-1508.78545051,0.00015004,2]
[406886832,1772266242539,-1500.0,0.00015004,2]
[406886833,1772266242549,-1500.0,0.00015004,2]
[406886834,1772266242561,-506.55258231,0.00015004,2]
[406886835,1772266242570,-1500.0,0.00015004,2]
[406886836,1772266242579,-1500.0,0.00015004,2]
[406886837,1772266242588,-1500.0,0.00015004,2]
[406886838,1772266242598,-537.002023,0.00015025,7]
[406886839,1772266242607,-500.0,0.00015038,2]
[406886840,1772266242616,-5300.417992,0.000152,7]
[406886841,1772266242625,-23194.69595625,0.00015233,2]
[406886842,1772266242635,-500.0,0.00015471,2]
[406886843,1772266242645,-500.0,0.00015471,2]
[406886844,1772266242661,-483.13999169,0.00015471,2]
[406886845,1772266242674,-5994.0,0.00015471,2]
[406886846,1772266242684,-1718.82282533,0.00015552,2]
[406886847,1772266242693,-2000.0,0.00015552,2]
[406886848,1772266242703,-1513.9298778,0.00015552,2]
[406886849,1772266242713,-1150.13473928,0.00015552,2]
[406886850,1772266242722,-1932.25528949,0.00015552,2]
[406886851,1772266242731,-2000.0,0.00015552,2]
[406886852,1772266242740,-2000.0,0.00015552,2]
[406886853,1772266242750,-2000.0,0.00015552,2]
[406886854,1772266242759,-529.02288049,0.00015552,2]
[406886855,1772266242769,-1747.77184833,0.00015552,2]
[406886856,1772266242778,-2000.0,0.00015552,2]
[406886857,1772266242788,-1706.92723051,0.00015552,2]
[406886858,1772266242797,-2000.0,0.00015552,2]
[406886859,1772266242807,-1146.84360097,0.00015552,2]
[406886860,1772266242816,-2000.0,0.00015552,2]
[406886861,1772266242825,-2000.0,0.00015552,2]
[406886862,1772266242835,-2041.26009197,0.00015552,2]
[406886863,1772266242844,-2000.0,0.00015552,2]
[406886864,1772266242853,-2000.0,0.00015552,2]
[406886865,1772266242863,-2000.0,0.00015552,2]
[406886866,1772266242871,-743.29162459,0.00015552,2]
[406886867,1772266242881,-2000.0,0.00015552,2]
[406886868,1772266242891,-2000.0,0.00015552,2]
[406886869,1772266242900,-11561.48863984,0.00015671,2]
[406886870,1772266242911,-150.0,0.000159,2]
[406886871,1772266242920,-150.0,0.000159,2]
[406886872,1772266242929,-150.0,0.000159,2]
[406886873,1772266242938,-151.0,0.00016096,2]
[406886874,1772266242947,-2500.0,0.00016099,2]
[406886875,1772266242957,-1015.31004766,0.00016099,2]
[406886876,1772266242966,-2500.0,0.00016099,2]
[406886877,1772266242975,-2500.0,0.00016099,2]
[406886878,1772266242984,-2212.37829793,0.00016099,2]
[406886879,1772266242993,-1019.35272173,0.00016099,2]
[406886880,1772266243002,-703.36470484,0.00016099,2]
[406886881,1772266243011,-2500.0,0.00016099,2]
[406886882,1772266243021,-2500.0,0.00016099,2]
[406886884,1772266243030,-500.0,0.00016099,2]
[406886885,1772266243039,-2500.0,0.00016099,2]
[406886887,1772266243048,-1009.53925467,0.00016099,2]
[406886889,1772266243057,-1118.86499239,0.00016099,2]
[406886891,1772266243066,-4609.0,0.00016104,2]
[406886892,1772266243075,-9999.99,0.00016116,2]
[406886893,1772266243084,-23194.69595625,0.00016122,2]
[406886894,1772266243093,-160.0,0.00016186,2]
[406886895,1772266243102,-174.04581251,0.00016186,2]
[406886896,1772266243111,-5000.00934757,0.000162,5]
[406886897,1772266243121,-309.69,0.00016373,2]
[406886898,1772266243130,-971.0,0.00016438,2]
[406886899,1772266243141,-228.15,0.00016438,2]
[406886900,1772266243150,-266.81662109,0.00016438,2]
[406886901,1772266243160,-971.0,0.00016493,2]
[406886902,1772266243169,-971.0,0.00016548,2]
[406886903,1772266243179,-971.0,0.00016602,2]
[406886904,1772266243188,-1000.0,0.00016606,2]
[406886905,1772266243197,-501.57340438,0.00016647,2]
[406886906,1772266243207,-2990.28139264,0.00016647,2]
[406886907,1772266243216,-1032.89246011,0.00016647,2]
[406886908,1772266243225,-1279.13777388,0.00016647,2]
[406886909,1772266243235,-3000.0,0.00016647,2]
[406886910,1772266243244,-3000.0,0.00016647,2]
[406886911,1772266243254,-971.0,0.00016657,2]
[406886912,1772266243264,-971.0,0.00016712,2]
[406886913,1772266243274,-167.13,0.00016712,2]
[406886914,1772266243283,-18940.0,0.0001672,2]
[406886915,1772266243292,-50000.0,0.0001672,2]
[406886916,1772266243302,-971.0,0.00016767,2]
[406886917,1772266243311,-11561.48863984,0.00016786,2]
[406886918,1772266243320,-2000.0,0.0001681,2]
[406886919,1772266243329,-971.0,0.00016822,2]
[406886920,1772266243338,-1286.00229614,0.00016838,2]
[406886921,1772266243348,-971.0,0.00016876,2]
[406886922,1772266243370,-267.46074303,0.00016903,2]
[406886923,1772266243378,-2000.0,0.0001691,2]
[406886924,1772266243387,-971.0,0.00016931,2]
[406886925,1772266243396,-150.0,0.00016938,7]
[406886926,1772266243406,-971.0,0.00016986,2]
[406886927,1772266243415,-300.0,0.00017,2]
[406886928,1772266243424,-147513.0296702,0.00017,2]
[406886929,1772266243433,-1703.92584425,0.00017001,2]
[406886930,1772266243442,-2000.0,0.0001701,2]
[406886931,1772266243451,-23194.69595625,0.00017011,2]
[406886932,1772266243460,-971.0,0.00017041,2]
[406886933,1772266243469,-308.99,0.00017091,2]
[406886934,1772266243478,-971.0,0.00017096,2]
[406886935,1772266243487,-179.89057835,0.00017099,2]
[406886936,1772266243496,-402.01800004,0.00017099,2]
[406886937,1772266243505,-5507.95366483,0.000171,2]
[406886938,1772266243514,-5000.0,0.000171,2]
[406886939,1772266243524,-171.1192,0.0001711,2]
[406886940,1772266243533,-171.1192,0.0001711,2]
[406886941,1772266243541,-171.1192,0.0001711,2]
[406886942,1772266243554,-171.1192,0.0001711,2]
[406886943,1772266243563,-171.1192,0.0001711,2]
[406886944,1772266243573,-171.1192,0.0001711,2]
[406886945,1772266243581,-843.93369988,0.00017113,2]
[406886946,1772266243590,-971.0,0.0001715,2]
[406886947,1772266243601,-3500.0,0.00017195,2]
[406886948,1772266243610,-798.53948142,0.00017195,2]
[406886949,1772266243619,-971.0,0.00017205,2]
[406886950,1772266243628,-971.0,0.0001726,2]
[406886951,1772266243636,-150.0,0.00017267,2]
[406886952,1772266243647,-3858.89400622,0.00017268,2]
[406886953,1772266243656,-500.0,0.00017281,2]
[406886954,1772266243665,-500.0,0.00017281,2]
[406886955,1772266243674,-971.0,0.00017315,2]
[406886956,1772266243683,-1286.00229613,0.00017369,2]
[406886957,1772266243692,-971.0,0.0001737,2]
[406886958,1772266243701,-2900.0,0.000174,6]
[406886959,1772266243710,-971.0,0.00017424,2]
[406886960,1772266243720,-277.35679052,0.00017451,2]
[406886961,1772266243729,-971.0,0.00017479,2]
[406886962,1772266243738,-694.42441671,0.000175,3]
[406886963,1772266243747,-5616.53495309,0.000175,3]
[406886964,1772266243757,-3800.0,0.000175,6]
[406886965,1772266243766,-336.0,0.00017519,2]
[406886966,1772266243776,-971.0,0.00017534,2]
[406886967,1772266243786,-270.39001499,0.00017542,2]
[406886968,1772266243795,-336.0,0.00017554,2]
[406886969,1772266243803,-971.0,0.00017589,2]
[406886970,1772266243812,-4800.0,0.000176,6]
[406886971,1772266243822,-336.0,0.00017638,2]
[406886972,1772266243831,-971.0,0.00017643,2]
[406886973,1772266243840,-977.0,0.00017698,2]
[406886974,1772266243848,-6821.23181421,0.000177,2]
[406886975,1772266243857,-900.0,0.000177,6]
[406886976,1772266243866,-336.0,0.00017708,2]
[406886977,1772266243876,-5985.0,0.00017714,2]
[406886978,1772266243886,-4000.0,0.00017743,2]
[406886979,1772266243896,-336.0,0.00017756,2]
[406886980,1772266243905,-336.0,0.00017759,2]
[406886981,1772266243914,-500.0,0.00017799,2]
[406886982,1772266243923,-10175.40517189,0.000178,2]
[406886983,1772266243932,-900.0,0.000178,6]
[406886984,1772266243941,-5000.0,0.00017808,2]
[406886985,1772266243950,-500.0,0.00017808,2]
[406886986,1772266243959,-800.0,0.00017808,2]
[406886987,1772266243967,-798.09072,0.0001782,2]
[406886988,1772266243976,-798.09072,0.0001782,2]
[406886989,1772266243985,-798.09072,0.0001782,2]
[406886990,1772266243993,-798.09072,0.0001782,2]
[406886991,1772266244002,-798.09072,0.0001782,2]
[406886992,1772266244011,-798.09071,0.0001782,2]
[406886993,1772266244020,-10175.40517186,0.0001782,2]
[406886994,1772266244029,-10175.40517186,0.0001784,2]
[406886995,1772266244038,-25000.0,0.00017856,3]
[406886996,1772266244047,-10175.40517186,0.0001786,2]
[406886997,1772266244057,-500.0,0.00017863,2]
[406886999,1772266244066,-25000.0,0.00017865,3]
[406887001,1772266244076,-25000.0,0.00017874,3]
[406887003,1772266244085,-10175.40517186,0.0001788,2]
[406887005,1772266244094,-25000.0,0.00017882,3]
[406887007,1772266244102,-1075.2658489,0.0001789,2]
[406887008,1772266244111,-25000.0,0.00017891,3]
[406887009,1772266244120,-500.0,0.00017899,2]
[406887010,1772266244130,-500.0,0.00017899,2]
[406887011,1772266244138,-500.0,0.00017899,2]
[406887012,1772266244148,-151.0,0.00017899,3]
[406887013,1772266244157,-151.0,0.00017899,3]
[406887014,1772266244165,-151.0,0.00017899,3]
[406887015,1772266244174,-151.0,0.00017899,3]
[406887016,1772266244183,-151.0,0.00017899,3]
[406887017,1772266244192,-151.0,0.00017899,3]
[406887018,1772266244201,-500.0,0.00017899,3]
[406887019,1772266244210,-227.69616285,0.00017899,3]
[406887020,1772266244220,-500.0,0.00017899,3]
[406887021,1772266244229,-500.0,0.00017899,3]
[406887022,1772266244237,-500.0,0.00017899,3]
[406887023,1772266244247,-500.0,0.00017899,3]
[406887024,1772266244256,-500.0,0.00017899,3]
[406887025,1772266244264,-500.0,0.00017899,3]
[406887026,1772266244273,-500.0,0.00017899,3]
[406887027,1772266244282,-500.0,0.00017899,3]
[406887029,1772266244291,-500.0,0.00017899,3]
[406887031,1772266244300,-500.0,0.00017899,3]
[406887033,1772266244308,-500.0,0.00017899,3]
[406887035,1772266244317,-500.0,0.00017899,3]
[406887037,1772266244325,-500.0,0.00017899,3]
[406887038,1772266244334,-500.0,0.00017899,3]
[406887041,1772266244344,-500.0,0.00017899,3]
[406887042,1772266244352,-500.0,0.00017899,3]
[406887044,1772266244361,-500.0,0.00017899,3]
[406887046,1772266244370,-500.0,0.00017899,3]
[406887048,1772266244379,-500.0,0.00017899,3]
[406887051,1772266244388,-500.0,0.00017899,3]
[406887053,1772266244398,-500.0,0.00017899,3]
[406887055,1772266244406,-500.0,0.00017899,3]
[406887057,1772266244416,-500.0,0.00017899,3]
[406887059,1772266244424,-151.0,0.00017899,3]
[406887062,1772266244434,-151.0,0.00017899,3]
[406887064,1772266244443,-151.0,0.00017899,3]
[406887066,1772266244452,-151.0,0.00017899,3]
[406887068,1772266244460,-668.65185757,0.00017899,3]
[406887070,1772266244470,-151.0,0.00017899,3]
[406887072,1772266244479,-693.3919763,0.00017899,3]
[406887074,1772266244488,-719.04747942,0.00017899,3]
[406887076,1772266244497,-151.0,0.00017899,3]
[406887078,1772266244506,-745.65223616,0.00017899,3]
[406887080,1772266244515,-151.0,0.00017899,3]
[406887082,1772266244523,-773.2413689,0.00017899,3]
[406887084,1772266244532,-151.0,0.00017899,3]
[406887096,1772266244656,-801.85129955,0.00017899,3]
[406887098,1772266244666,-151.0,0.00017899,3]
[406887100,1772266244675,-831.51979763,0.00017899,3]
[406887102,1772266244684,-151.0,0.00017899,3]
[406887104,1772266244693,-862.28603014,0.00017899,3]
[406887106,1772266244702,-151.0,0.00017899,3]
[406887108,1772266244711,-894.19061326,0.00017899,3]
[406887110,1772266244720,-151.0,0.00017899,3]
[406887112,1772266244728,-927.27566595,0.00017899,3]
[406887114,1772266244738,-961.58486559,0.00017899,3]
[406887116,1772266244747,-997.16350561,0.00017899,3]
[406887118,1772266244755,-500.0,0.00017899,3]
[406887120,1772266244764,-500.0,0.00017899,3]
[406887122,1772266244773,-500.0,0.00017899,3]
[406887124,1772266244782,-500.0,0.00017899,3]
[406887126,1772266244790,-500.0,0.00017899,3]
[406887127,1772266244799,-500.0,0.00017899,3]
[406887129,1772266244808,-500.0,0.00017899,3]
[406887131,1772266244817,-500.0,0.00017899,3]
[406887133,1772266244826,-334.50866629,0.00017899,3]
[406887135,1772266244835,-150.0,0.000179,2]
[406887138,1772266244845,-32888.5933,0.000179,2]
[406887140,1772266244854,-10000.0,0.000179,2]
[406887142,1772266244863,-150.0,0.000179,2]
[406887144,1772266244872,-1000.0,0.000179,2]
[406887146,1772266244881,-150.0,0.000179,2]
[406887147,1772266244889,-150.0,0.000179,2]
[406887149,1772266244899,-161.72848927,0.000179,2]
[406887151,1772266244908,-150.0,0.000179,2]
[406887154,1772266244918,-25000.0,0.000179,3]
[406887155,1772266244927,-23194.69595625,0.000179,2]
[406887158,1772266244936,-1286.00229613,0.000179,2]
[406887160,1772266244945,-11561.48863984,0.000179,2]
[406887162,1772266244954,-900.0,0.000179,6]
[406887164,1772266244963,-717.48985826,0.000179,2]
[406887166,1772266244972,-13059.85294174,0.000179,2]
[406887168,1772266244981,-398.90714608,0.000179,3]
[406887169,1772266244990,-10175.40517186,0.000179,2]
[406887172,1772266245000,-6843.47076147,0.000179,2]
[406887174,1772266245009,-500.0,0.00017918,2]
[406887176,1772266245019,-336.0,0.00017919,2]
[406887178,1772266245028,-372.998721,0.0001793,2]
[406887180,1772266245036,-278.6499789,0.00017938,2]
[406887182,1772266245045,-11117.7498616,0.00017947,2]
[406887184,1772266245054,-3661.0977612,0.00017947,2]
[406887186,1772266245063,-336.0,0.0001797,2]
[406887188,1772266245072,-2687.6715726,0.00017972,2]
[406887190,1772266245081,-500.0,0.00017972,2]
[406887192,1772266245091,-150.0,0.00017973,2]
[406887194,1772266245099,-150.0,0.00017973,2]
[406887196,1772266245108,-500.0,0.00017987,2]
[406887197,1772266245117,-500.0,0.00017987,2]
[406887199,1772266245127,-500.0,0.00017987,2]
[406887201,1772266245136,-1703.92584425,0.0001799,2]
[406887203,1772266245145,-1703.92584425,0.0001799,2]
[406887206,1772266245154,-336.0,0.00017995,2]
[406887207,1772266245163,-500.0,0.00017996,2]
[406887209,1772266245172,-500.0,0.00017996,2]
[406887211,1772266245181,-500.0,0.00017996,2]
[406887213,1772266245190,-500.0,0.00017996,2]
[406887215,1772266245199,-5392.7430705,0.00017997,2]
[406887217,1772266245208,-18074.9561529,0.00017997,2]
[406887219,1772266245218,-895.8905242,0.00017997,2]
[406887222,1772266245227,-5750.2298239,0.00017997,2]
[406887224,1772266245236,-258349.4588358,0.00017997,2]
[406887226,1772266245245,-4770.3340093,0.00017997,2]
[406887227,1772266245254,-64008.2756724,0.00017997,2]
[406887229,1772266245263,-151.0,0.00017997,2]
[406887232,1772266245272,-500.0,0.00017999,2]
[406887234,1772266245281,-412.12,0.00017999,2]
[406887236,1772266245290,-500.0,0.00017999,2]
[406887238,1772266245298,-500.0,0.00017999,2]
[406887239,1772266245308,-500.0,0.00017999,2]
[406887241,1772266245317,-500.0,0.00017999,2]
[406887243,1772266245326,-500.0,0.00017999,2]
[406887245,1772266245334,-500.0,0.00017999,2]
[406887247,1772266245343,-500.0,0.00017999,2]
[406887249,1772266245352,-500.0,0.00017999,2]
[406887251,1772266245360,-478.88,0.00017999,2]
[406887253,1772266245370,-500.0,0.00017999,2]
[406887255,1772266245379,-290.04213309,0.00017999,2]
[406887258,1772266245388,-500.0,0.00017999,2]
[406887260,1772266245398,-500.0,0.00017999,2]
[406887262,1772266245408,-500.0,0.00017999,2]
[406887264,1772266245417,-500.0,0.00017999,2]
[406887266,1772266245427,-648.3262986,0.00017999,2]
[406887268,1772266245436,-197.77891645,0.00017999,2]
[406887270,1772266245446,-173.8,0.00017999,2]
[406887272,1772266245455,-300.0,0.00017999,2]
[406887274,1772266245464,-287.61899177,0.00017999,2]
[406887276,1772266245473,-3377566.15362186,0.00018,2]
[406887278,1772266245482,-200.0,0.00018,2]
[406887280,1772266245491,-150.77,0.00018,7]
[406887282,1772266245501,-257.33277415,0.00018,2]
[406887284,1772266245510,-372403.91282413,0.00018,2]
[406887290,1772266245564,-323.80304104,0.00016244,2]
[406887292,1772266245573,-7976784.33728906,0.00018,2]
[406887294,1772266245584,-621.86898814,0.00018,2]
[406887297,1772266245595,-316.30887136,0.00018,2]
[406887299,1772266245606,-1393.20373301,0.00018,2]
[406887301,1772266245622,-15217.80290295,0.00018,2]
[406887304,1772266245632,-568.9,0.00018,2]
[406887311,1772266245693,-323367.01967764,0.00018,2]
[406887315,1772266245714,-639.53,0.00018,2]
[406887318,1772266245731,-39693.62983481,0.00018,2]
[406887320,1772266245741,-978.528,0.00018,2]
[406887365,1772266246122,-3373.09112712,0.00018,2]
[406887373,1772266246191,-720.69661148,0.00018,2]
[406887385,1772266246244,-159473.37932789,0.00018,2]
[406887420,1772266246512,-6372.68472544,0.00018,2]
[406887423,1772266246524,-3721.99999999,0.00018,2]
[406887425,1772266246536,-7861.62354848,0.00018,2]
[406887426,1772266246546,-788.04373492,0.00018,2]
[406887993,1772266267311,501.59993335,8.003e-05,2]
[406887994,1772266270068,500.43690086,8.003e-05,2]
[406887995,1772266274420,500.0,8.003e-05,2]
[406887996,1772266704244,1285.52,7.643e-05,2]
[406887997,1772266704461,1285.52,7.972e-05,2]
[406887998,1772266704663,1285.52,8.302e-05,2]
[406887999,1772266704860,1285.52,8.631e-05,2]
[406888000,1772266705060,1285.52,8.96e-05,2]
[406888001,1772266705264,1285.52,9.289e-05,2]
[406888002,1772266705463,1285.52,9.618e-05,2]
[406888003,1772266705656,1285.52,9.947e-05,2]
[406888023,1772266963872,3899.0,0.0001,2]
[406888047,1772267431451,-263.36265892,0.00010176,2]
[406888048,1772267431463,-245.97419289,0.00010176,2]
[406888049,1772267431473,-459.91940842,0.00010226,2]
[406888050,1772267431484,-784.39115245,0.00010226,2]
[406888051,1772267431496,-474.202935,0.00010226,2]
[406888052,1772267431511,-265.84703492,0.00010226,2]
[406888053,1772267431536,-515.63946921,0.00010226,2]
[406888054,1772267431546,-1285.52,0.00010276,2]
[406888055,1772267431555,-507.0,0.00010296,2]
[406888056,1772267431565,-300.0,0.00010296,2]
[406888057,1772267431575,-1200.0,0.00010296,2]
[406888059,1772267431584,-2500.0,0.00010297,2]
[406888061,1772267431594,-2500.0,0.00010297,2]
[406888062,1772267431603,-2500.0,0.00010297,2]
[406888064,1772267431612,-4630.38,0.00010481,2]
[406888066,1772267431621,-509.33685179,0.00010506,2]
[406888068,1772267431631,-1285.52,0.00010605,2]
[406888070,1772267431640,-5.6908191,0.00010899,2]
[406888072,1772267431652,-144.3091809,0.00010899,2]
[406888074,1772267431662,-12835.11773303,0.000109,2]
[406888076,1772267431675,-4341.66644587,0.000109,2]
[406888137,1772267437572,-509.33685179,0.00010835,2]
[406888138,1772267437582,-1982823.2158211,0.000109,2]
[406888139,1772267437592,-1285.52,0.00010934,2]
[406888140,1772267437602,-166.66,0.00010959,2]
[406888141,1772267437611,-3968.4,0.00011,3]
[406888142,1772267437620,-150.99,0.00011,2]
[406888143,1772267437630,-999.99,0.00011,2]
[406888144,1772267437640,-150.99,0.00011,2]
[406888145,1772267437649,-3674.39,0.00011,2]
[406888146,1772267437659,-299.99,0.00011,2]
[406888147,1772267437668,-9999.99,0.00011,2]
[406888148,1772267437678,-9999.99,0.00011,2]
[406888149,1772267437687,-348.57,0.00011,2]
[406888150,1772267437697,-2258.6,0.00011011,2]
[406888151,1772267437707,-166.66,0.00011068,2]
[406888152,1772267437717,-362.0,0.00011108,2]
[406888153,1772267437726,-166.66,0.00011178,2]
[406888154,1772267437735,-2500.0,0.00011194,2]
[406888155,1772267437744,-500.0,0.00011194,2]
[406888156,1772267437754,-500.0,0.00011194,2]
[406888157,1772267437763,-500.0,0.00011194,2]
[406888158,1772267437772,-500.0,0.00011194,2]
[406888159,1772267437782,-500.0,0.00011194,2]
[406888161,1772267437791,-1285.52,0.00011264,2]
[406888163,1772267437800,-166.66,0.00011288,2]
[406888165,1772267437809,-420.0,0.00011322,2]
[406888167,1772267437819,-166.66,0.00011397,2]
[406888169,1772267437829,-4133.7097,0.00011418,2]
[406888171,1772267437839,-2932.21297542,0.00011493,2]
[406888173,1772267437848,-166.66,0.00011507,2]
[406888175,1772267437857,-502.46010637,0.00011511,2]
[406888177,1772267437867,-500.0,0.00011511,2]
[406888179,1772267437876,-500.0,0.00011511,2]
[406888181,1772267437885,-500.0,0.00011511,2]
[406888183,1772267437894,-500.0,0.00011511,2]
[406888185,1772267437904,-500.0,0.00011511,2]
[406888187,1772267437918,-500.0,0.00011511,2]
[406888189,1772267437933,-500.0,0.00011511,2]
[406888191,1772267437942,-500.0,0.00011511,2]
[406888193,1772267437952,-500.0,0.00011511,2]
[406888195,1772267437961,-500.0,0.00011511,2]
[406888197,1772267437970,-151.0,0.00011511,2]
[406888199,1772267437980,-500.0,0.00011511,2]
[406888201,1772267437989,-151.0,0.00011511,2]
[406888203,1772267437999,-500.0,0.00011511,2]
[406888205,1772267438008,-151.0,0.00011511,2]
[406888207,1772267438018,-151.0,0.00011511,2]
[406888209,1772267438028,-151.0,0.00011511,2]
[406888211,1772267438039,-151.0,0.00011511,2]
[406888213,1772267438048,-151.0,0.00011511,2]
[406888215,1772267438057,-151.0,0.00011511,2]
[406888217,1772267438065,-151.0,0.00011511,2]
[406888219,1772267438075,-151.0,0.00011511,2]
[406888221,1772267438084,-151.0,0.00011511,2]
[406888223,1772267438094,-151.0,0.00011511,2]
[406888225,1772267438103,-500.0,0.00011511,2]
[406888227,1772267438113,-151.0,0.00011511,2]
[406888229,1772267438124,-500.0,0.00011511,2]
[406888231,1772267438134,-151.0,0.00011511,2]
[406888233,1772267438144,-500.0,0.00011511,2]
[406888235,1772267438153,-151.0,0.00011511,2]
[406888237,1772267438163,-500.0,0.00011511,2]
[406888238,1772267438174,-151.0,0.00011511,2]
[406888240,1772267438183,-500.0,0.00011511,2]
[406888243,1772267438197,-151.0,0.00011511,2]
[406888245,1772267438206,-151.0,0.00011511,2]
[406888247,1772267438216,-500.0,0.00011511,2]
[406888249,1772267438225,-151.0,0.00011511,2]
[406888251,1772267438235,-500.0,0.00011511,2]
[406888253,1772267438245,-151.0,0.00011511,2]
[406888255,1772267438254,-500.0,0.00011511,2]
[406888257,1772267438263,-500.0,0.00011511,2]
[406888259,1772267438272,-500.0,0.00011511,2]
[406888261,1772267438281,-500.0,0.00011511,2]
[406888263,1772267438291,-500.0,0.00011511,2]
[406888265,1772267438300,-151.0,0.00011511,2]
[406888267,1772267438309,-151.0,0.00011511,2]
[406888269,1772267438318,-151.0,0.00011511,2]
[406888271,1772267438328,-151.0,0.00011511,2]
[406888272,1772267438337,-151.0,0.00011511,2]
[406888273,1772267438347,-151.0,0.00011511,2]
[406888274,1772267438356,-151.0,0.00011511,2]
[406888276,1772267438366,-151.0,0.00011511,2]
[406888278,1772267438375,-151.0,0.00011511,2]
[406888280,1772267438384,-151.0,0.00011511,2]
[406888282,1772267438394,-151.0,0.00011511,2]
[406888293,1772267438547,-151.0,0.00011511,2]
[406888296,1772267438568,-500.0,0.00011511,2]
[406888297,1772267438579,-1432.94041959,0.00011517,3]
[406888299,1772267438589,-1432.9404196,0.00011517,3]
[406888300,1772267438599,-1285.52,0.00011593,2]
[406888302,1772267438608,-25628.12241711,0.00011618,2]
[406888304,1772267438618,-500.0,0.00011785,2]
[406888305,1772267438628,-1285.52,0.00011922,2]
[406888307,1772267438638,-500.0,0.00012059,2]
[406888309,1772267438648,-9999.99,0.00012087,2]
[406888310,1772267438658,-1285.52,0.00012251,2]
[406888312,1772267438667,-500.0,0.00012333,2]
[406888313,1772267438676,-1600.0,0.00012423,2]
[406888315,1772267438686,-587.0,0.00012451,2]